bitfinex/quotes_BTCUSD_20240617
["timestamp","ask_amount","ask_price","bid_price","bid_amount"]
[1718622839073,1.16603848,65960.0,65959.0,0.001935]
[1718622839924,1.09323848,65960.0,65959.0,0.001935]
[1718622840354,0.79002448,65960.0,65959.0,0.001935]
[1718622840561,0.86282448,65960.0,65959.0,0.067435]
[1718622840764,1.16603848,65960.0,65959.0,0.067435]
[1718622841656,0.79002448,65960.0,65959.0,0.067435]
[1718622842145,0.86282448,65960.0,65959.0,0.067435]
[1718622842418,1.16603848,65960.0,65959.0,0.067435]
[1718622842873,1.16036361,65960.0,65959.0,0.067435]
[1718622843337,1.16603643,65960.0,65959.0,0.067435]
[1718622845599,1.16603643,65960.0,65959.0,0.0818485]
[1718622846536,1.16036207,65960.0,65959.0,0.0818485]
[1718622848273,1.16604183,65960.0,65959.0,0.0818485]
[1718622848698,0.79002783,65960.0,65959.0,0.0818485]
[1718622848953,0.86282783,65960.0,65959.0,0.0818485]
[1718622849172,0.90832783,65960.0,65959.0,0.0818485]
[1718622849885,0.90832783,65960.0,65959.0,0.1622485]
[1718622850542,0.83552783,65960.0,65959.0,0.1622485]
[1718622850727,0.90832783,65960.0,65959.0,0.1622485]
[1718622851058,0.90832783,65960.0,65959.0,0.147835]
[1718622852105,0.83552783,65960.0,65959.0,0.147835]
[1718622852535,0.08505283,65960.0,65959.0,0.147835]
[1718622852755,0.19115983,65960.0,65959.0,0.27368622]
[1718622852998,0.49437383,65960.0,65959.0,0.27368622]
[1718622856866,0.19115983,65960.0,65959.0,0.27368622]
[1718622858742,0.19115983,65960.0,65959.0,0.147835]
[1718622859038,0.19115983,65960.0,65959.0,0.217384]
[1718622859245,0.19115983,65960.0,65959.0,0.27367718]
[1718622859605,0.19115983,65960.0,65959.0,0.147835]
[1718622861405,0.19115983,65960.0,65959.0,0.27367714]
[1718622863830,0.03955283,65960.0,65959.0,0.27367713]
[1718622864036,0.03955283,65960.0,65959.0,0.35072255]
[1718622864480,0.03955283,65960.0,65959.0,0.27367713]
[1718622872812,0.18415983,65960.0,65959.0,0.27267713]
[1718622873020,0.03255283,65960.0,65959.0,0.27267713]
[1718622873227,0.02655283,65960.0,65959.0,0.27267713]
[1718622873452,0.17815983,65960.0,65959.0,0.27267713]
[1718622873657,0.18415983,65960.0,65959.0,0.33149058]
[1718622874842,0.18415983,65960.0,65959.0,0.27367713]
[1718622878388,0.48737383,65960.0,65959.0,0.27367713]
[1718622879019,0.48737383,65960.0,65959.0,0.27367782]
[1718622880469,0.48737383,65960.0,65959.0,0.147835]
[1718622880681,0.48737383,65960.0,65959.0,0.27367769]
[1718622881262,0.48737383,65960.0,65959.0,0.34653106]
[1718622881468,0.48737383,65960.0,65959.0,0.27367769]
[1718622882249,0.53024903,65960.0,65959.0,0.27367769]
[1718622884626,0.83346303,65960.0,65959.0,0.27367769]
[1718622887230,0.83351977,65960.0,65959.0,0.27368392]
[1718622889320,0.83351977,65960.0,65959.0,0.147835]
[1718622889542,0.90631977,65960.0,65959.0,0.147835]
[1718622890758,0.90631977,65960.0,65959.0,0.0167185]
[1718622893144,0.86338783,65960.0,65959.0,0.0167185]
[1718622893362,0.90628979,65960.0,65959.0,0.0167185]
[1718622896440,0.90628979,65960.0,65959.0,0.001935]
[1718622898017,1.20950379,65960.0,65959.0,0.001935]
[1718622898257,0.83348979,65960.0,65959.0,0.001935]
[1718622898471,0.90628979,65960.0,65959.0,0.001935]
[1718622899085,0.90639117,65960.0,65959.0,0.001935]
[1718622899557,0.90639117,65960.0,65959.0,0.0163385]
[1718622899961,0.83359117,65960.0,65959.0,0.0163385]
[1718622901575,0.83359117,65960.0,65959.0,0.001935]
[1718622902113,1.32704906,65960.0,65959.0,0.001935]
[1718622902556,1.3192313,65960.0,65959.0,0.001935]
[1718622903448,1.25100517,65960.0,65959.0,0.001935]
[1718622904314,1.29648159,65960.0,65959.0,0.001935]
[1718622904533,1.61969559,65960.0,65959.0,0.001935]
[1718622904756,1.32380517,65960.0,65959.0,0.001935]
[1718622904963,1.4120313,65960.0,65959.0,0.001935]
[1718622905185,1.6952453,65960.0,65959.0,0.001935]
[1718622905404,1.3920313,65960.0,65959.0,0.001935]
[1718622905632,1.32380517,65960.0,65959.0,0.001935]
[1718622905834,1.62701917,65960.0,65959.0,0.001935]
[1718622906275,1.32380517,65960.0,65959.0,0.001935]
[1718622907379,1.36926734,65960.0,65959.0,0.001935]
[1718622908562,1.67247816,65960.0,65959.0,0.001935]
[1718622908785,1.62701917,65960.0,65959.0,0.001935]
[1718622909009,1.32380517,65960.0,65959.0,0.001935]
[1718622909227,1.36926159,65960.0,65959.0,0.001935]
[1718622909437,1.36926158,65960.0,65959.0,0.001935]
[1718622910507,1.72260379,65960.0,65959.0,0.001935]
[1718622910730,1.65441917,65960.0,65959.0,0.001935]
[1718622911166,1.6543217,65960.0,65959.0,0.001935]
[1718622911597,2.10962349,65960.0,65959.0,0.001935]
[1718622911810,2.02004915,65960.0,65959.0,0.001935]
[1718622912052,2.00640949,65960.0,65959.0,0.001935]
[1718622912436,1.90640949,65960.0,65959.0,0.001935]
[1718622912647,1.93013908,65960.0,65959.0,0.001935]
[1718622913025,2.03013908,65960.0,65959.0,0.001935]
[1718622913252,1.93013908,65960.0,65959.0,0.001935]
[1718622913461,2.22735308,65960.0,65959.0,0.000935]
[1718622913685,2.03772635,65960.0,65959.0,0.000935]
[1718622913877,2.05172635,65960.0,65959.0,0.000935]
[1718622914304,2.13772635,65960.0,65959.0,0.000935]
[1718622914530,2.02417115,65960.0,65959.0,0.000935]
[1718622914738,2.34138515,65960.0,65959.0,0.000935]
[1718622914959,2.44138515,65960.0,65959.0,0.000935]
[1718622915815,2.50026063,65960.0,65959.0,0.000935]
[1718622916016,2.44138515,65960.0,65959.0,0.000935]
[1718622916436,2.44143037,65960.0,65959.0,0.000935]
[1718622917556,2.45961741,65960.0,65959.0,0.000935]
[1718622917970,2.35961741,65960.0,65959.0,0.000935]
[1718622918182,2.38681741,65960.0,65959.0,0.000935]
[1718622918431,2.45961741,65960.0,65959.0,0.000935]
[1718622918640,2.57309455,65960.0,65959.0,0.000935]
[1718622918853,2.63201473,65960.0,65959.0,0.000935]
[1718622919060,2.51853759,65960.0,65959.0,0.000935]
[1718622919283,2.57308246,65960.0,65959.0,1e-06]
[1718622919488,2.85389141,65960.0,65959.0,1e-06]
[1718622919709,2.91281159,65960.0,65959.0,1e-06]
[1718622919919,3.04917919,65960.0,65959.0,1e-06]
[1718622920349,2.91281159,65960.0,65959.0,1e-06]
[1718622920550,3.07241159,65960.0,65959.0,1e-06]
[1718622920754,3.05841159,65960.0,65959.0,1e-06]
[1718622921108,3.01542843,65960.0,65959.0,1e-06]
[1718622921333,2.97995067,65960.0,65959.0,1e-06]
[1718622921672,3.08214028,65960.0,65959.0,1e-06]
[1718622922467,3.01363718,65960.0,65959.0,1e-06]
[1718622922692,3.02307904,65960.0,65959.0,1e-06]
[1718622928139,3.02307936,65960.0,65959.0,1e-06]
[1718622929545,3.02307949,65960.0,65959.0,1e-06]
[1718622933159,3.02007949,65960.0,65959.0,1e-06]
[1718622933583,3.03407949,65960.0,65959.0,1e-06]
[1718622937910,2.99095056,65960.0,65959.0,1e-06]
[1718622938699,0.17,65950.0,65949.0,1e-06]
[1718622938872,2.7028801,65950.0,65949.0,1e-06]
[1718622939081,2.79342323,65950.0,65949.0,1e-06]
[1718622939677,2.72062323,65950.0,65949.0,1e-06]
[1718622939878,2.79342323,65950.0,65949.0,1e-06]
[1718622940109,2.69342323,65950.0,65949.0,1e-06]
[1718622940325,2.82142323,65950.0,65949.0,0.001001]
[1718622940510,2.72142323,65950.0,65949.0,0.001001]
[1718622940685,2.82142323,65950.0,65949.0,0.001001]
[1718622942302,2.82143889,65950.0,65949.0,0.001001]
[1718622943089,2.72143889,65950.0,65949.0,0.001001]
[1718622943307,2.65341614,65950.0,65949.0,0.001001]
[1718622943508,2.75341614,65950.0,65949.0,0.001001]
[1718622945260,2.84414575,65950.0,65949.0,0.001001]
[1718622948402,2.75341614,65950.0,65949.0,0.001001]
[1718622948816,2.84417078,65950.0,65949.0,0.001001]
[1718622949246,2.75341614,65950.0,65949.0,0.001001]
[1718622950123,2.75341614,65950.0,65941.0,0.1413]
[1718622950124,1.384832,65942.0,65941.0,0.1413]
[1718622950333,1.91774263,65942.0,65941.0,0.1413]
[1718622950534,2.11304546,65942.0,65941.0,0.1413]
[1718622950742,2.21304546,65942.0,65941.0,0.1413]
[1718622950951,2.14496067,65942.0,65941.0,0.1413]
[1718622951381,1.384877,65940.0,65939.0,0.08408]
[1718622951604,1.54640749,65940.0,65939.0,0.08408]
[1718622951821,2.11780314,65940.0,65939.0,0.08408]
[1718622952023,2.14030532,65940.0,65939.0,0.08408]
[1718622952265,1.97221567,65940.0,65939.0,0.08408]
[1718622952486,1.66890967,65940.0,65939.0,0.08408]
[1718622952889,1.73700359,65940.0,65939.0,0.08408]
[1718622953328,1.66890967,65940.0,65939.0,0.08408]
[1718622954208,1.67990967,65940.0,65939.0,0.08408]
[1718622955113,1.69390967,65940.0,65939.0,0.08408]
[1718622955535,1.78468852,65940.0,65939.0,0.08408]
[1718622956142,1.78468852,65940.0,65939.0,0.00098]
[1718622956396,1.78475291,65940.0,65939.0,0.00098]
[1718622957041,1.78475291,65940.0,65916.0,0.151706]
[1718622957042,1.435021,65933.0,65929.0,0.0621]
[1718622957253,1.65990879,65933.0,65932.0,0.090783]
[1718622957463,1.85995521,65933.0,65932.0,0.090783]
[1718622957677,2.09515373,65933.0,65932.0,0.090783]
[1718622958314,2.16328323,65933.0,65932.0,0.090783]
[1718622958528,2.09515373,65933.0,65932.0,0.090783]
[1718622958909,2.10915373,65933.0,65932.0,0.090783]
[1718622959106,2.10915373,65933.0,65932.0,0.152783]
[1718622959579,2.12015373,65933.0,65932.0,0.152783]
[1718622960134,2.10915373,65933.0,65932.0,0.152783]
[1718622960335,1.82388359,65933.0,65932.0,0.152783]
[1718622960542,2.24672459,65933.0,65932.0,0.152783]
[1718622960744,2.26072459,65933.0,65932.0,0.152783]
[1718622960950,2.27472459,65933.0,65932.0,0.152783]
[1718622961184,2.24672459,65933.0,65932.0,0.152783]
[1718622961701,2.16985673,65933.0,65932.0,0.152783]
[1718622962727,1.80771873,65933.0,65932.0,0.152783]
[1718622963025,1.27285024,65933.0,65932.0,0.152783]
[1718622963214,1.21214724,65933.0,65932.0,0.1680613]
[1718622963426,1.18494724,65933.0,65932.0,0.1680613]
[1718622964118,1.17094724,65933.0,65932.0,0.1680613]
[1718622964348,1.15694724,65933.0,65932.0,0.1680613]
[1718622964560,1.16894724,65933.0,65932.0,0.1680613]
[1718622964777,1.18294724,65933.0,65932.0,0.152783]
[1718622964993,0.80680924,65933.0,65932.0,0.152783]
[1718622965212,1.11014724,65933.0,65932.0,0.152783]
[1718622968059,0.04846424,65933.0,65932.0,0.172783]
[1718622968274,0.20013324,65933.0,65932.0,0.152783]
[1718622968494,0.80680924,65933.0,65932.0,0.1700613]
[1718622970212,0.80680924,65933.0,65932.0,0.152783]
[1718622970426,0.04846424,65933.0,65932.0,0.162783]
[1718622971077,0.04846424,65933.0,65932.0,0.152783]
[1718622971290,0.026,65933.0,65932.0,0.172783]
[1718622971716,0.012,65933.0,65932.0,0.2459003]
[1718622971921,0.18942058,65933.0,65932.0,0.2459003]
[1718622972126,0.170669,65933.0,65932.0,0.152783]
[1718622972339,0.18943789,65933.0,65932.0,0.152783]
[1718622972560,0.03776889,65933.0,65932.0,0.152783]
[1718622972762,0.02576889,65933.0,65932.0,0.324454]
[1718622973013,0.02876889,65933.0,65932.0,0.324454]
[1718622973221,0.02876889,65933.0,65932.0,0.4175706]
[1718622973441,0.01,65933.0,65932.0,1.0242546]
[1718622973659,0.02877184,65933.0,65932.0,1.0242546]
[1718622973882,0.01,65933.0,65932.0,0.7209126]
[1718622977259,0.01,65933.0,65932.0,1.0242546]
[1718622978356,0.01,65933.0,65932.0,0.7209126]
[1718622978753,0.01,65933.0,65932.0,1.0242546]
[1718622979556,0.01,65933.0,65932.0,0.7209126]
[1718622979755,0.01,65933.0,65932.0,0.931138]
[1718622979932,0.0169,65933.0,65932.0,0.931138]
[1718622983655,0.0169,65933.0,65932.0,0.627796]
[1718622984080,0.0169,65933.0,65932.0,0.931138]
[1718622984251,0.0169,65933.0,65932.0,1.0718678]
[1718622986078,0.0169,65933.0,65932.0,1.3752098]
[1718622986749,0.0169,65933.0,65932.0,1.0718678]
[1718622986970,0.0169,65933.0,65932.0,1.09033769]
[1718622988751,0.0169,65933.0,65932.0,1.39367969]
[1718622989200,0.0169,65933.0,65932.0,1.67164523]
[1718622990769,0.0139,65933.0,65932.0,1.67164523]
[1718622991804,0.0069,65933.0,65932.0,1.67164523]
[1718622992860,0.0069,65933.0,65932.0,1.67364523]
[1718622994294,0.0069,65933.0,65932.0,1.67364199]
[1718622994501,0.0069,65933.0,65932.0,1.37029999]
[1718622994713,0.0069,65933.0,65932.0,1.44309999]
[1718622995319,0.0069,65933.0,65932.0,1.37029999]
[1718622996167,0.0069,65933.0,65932.0,1.35029999]
[1718622996386,0.0069,65933.0,65932.0,1.37029999]
[1718622996604,0.0069,65933.0,65932.0,1.44309999]
[1718622997034,0.0069,65933.0,65932.0,1.37029999]
[1718622997455,0.0069,65933.0,65932.0,1.06695799]
[1718622999444,0.01789625,65933.0,65932.0,1.06695799]
[1718623001043,0.01789625,65933.0,65932.0,0.76361599]
[1718623001398,0.01789625,65933.0,65932.0,0.62288619]
[1718623001824,0.01789625,65933.0,65932.0,0.47121519]
[1718623003026,0.01789625,65933.0,65932.0,0.45121519]
[1718623003222,0.01789625,65933.0,65932.0,0.47121519]
[1718623003831,0.01789625,65933.0,65932.0,0.45121519]
[1718623004039,0.77624125,65933.0,65932.0,0.13725751]
[1718623004251,1.07957925,65933.0,65932.0,0.011383]
[1718623005288,1.1230564,65933.0,65932.0,0.011383]
[1718623005515,1.1230564,65933.0,65932.0,0.009383]
[1718623006282,1.1310564,65933.0,65932.0,0.009383]
[1718623006500,1.4343944,65933.0,65932.0,0.009383]
[1718623006717,1.1350564,65933.0,65932.0,0.009383]
[1718623008376,1.39491725,65933.0,65932.0,0.009383]
[1718623008586,1.43844488,65933.0,65932.0,0.009383]
[1718623009204,1.13510688,65933.0,65932.0,0.009383]
[1718623010075,1.09157925,65933.0,65932.0,0.009383]
[1718623012911,1.16437925,65933.0,65932.0,0.009383]
[1718623021255,1.60681725,65933.0,65932.0,0.009383]
[1718623021486,1.63038288,65933.0,65932.0,0.009383]
[1718623021685,1.65038288,65933.0,65932.0,0.009383]
[1718623023357,1.57758288,65933.0,65932.0,0.009383]
[1718623023655,1.65038288,65933.0,65932.0,0.009383]
[1718623023841,1.69582832,65933.0,65932.0,0.009383]
[1718623024265,1.65038288,65933.0,65932.0,0.009383]
[1718623024637,1.55758288,65933.0,65932.0,0.009383]
[1718623025069,1.63052962,65933.0,65932.0,0.009383]
[1718623025467,1.65052962,65933.0,65932.0,0.009383]
[1718623025699,1.63052962,65933.0,65932.0,0.009383]
[1718623026240,1.63051636,65933.0,65932.0,0.009383]
[1718623027054,1.65051636,65933.0,65932.0,0.009383]
[1718623027820,1.63051636,65933.0,65932.0,0.009383]
[1718623029514,1.65051636,65933.0,65932.0,0.009383]
[1718623031333,1.68357717,65933.0,65932.0,0.009383]
[1718623032114,2.13900296,65933.0,65932.0,0.009383]
[1718623032316,2.19530385,65933.0,65932.0,0.009383]
[1718623032528,2.29969513,65933.0,65932.0,0.009383]
[1718623033106,2.29569513,65933.0,65932.0,0.009383]
[1718623033318,2.31345016,65933.0,65932.0,0.009383]
[1718623033559,2.30545016,65933.0,65932.0,0.009383]
[1718623033883,2.31945016,65933.0,65932.0,0.009383]
[1718623034710,2.33345016,65933.0,65932.0,0.009383]
[1718623035091,2.31945016,65933.0,65932.0,0.009383]
[1718623035501,2.37882828,65933.0,65932.0,0.009383]
[1718623035714,2.48345016,65933.0,65932.0,0.009383]
[1718623035922,2.55151734,65933.0,65932.0,0.009383]
[1718623036124,2.78678816,65933.0,65932.0,0.009383]
[1718623036326,2.48345016,65933.0,65932.0,0.009383]
[1718623036880,1.785961,65921.0,65920.0,0.009383]
[1718623037081,1.90245028,65921.0,65920.0,0.009383]
[1718623037414,1.9114136,65921.0,65920.0,0.009383]
[1718623037613,1.6080206,65921.0,65920.0,0.009383]
[1718623038204,1.6130206,65921.0,65920.0,0.009383]
[1718623039049,1.5741206,65921.0,65920.0,0.009383]
[1718623039262,1.5751206,65921.0,65920.0,0.009383]
[1718623039465,1.5951206,65921.0,65920.0,0.009383]
[1718623039866,1.5941206,65921.0,65920.0,0.009383]
[1718623040098,1.6031206,65921.0,65920.0,0.009383]
[1718623040296,1.5981206,65921.0,65920.0,0.009383]
[1718623041315,1.6111206,65921.0,65920.0,0.009383]
[1718623042324,1.9162136,65921.0,65920.0,0.009383]
[1718623043608,1.6128206,65921.0,65920.0,0.009383]
[1718623044402,1.5928206,65921.0,65920.0,0.009383]
[1718623044601,1.6128206,65921.0,65920.0,0.009383]
[1718623044808,1.5928206,65921.0,65920.0,0.009383]
[1718623046354,1.6128206,65921.0,65920.0,0.009383]
[1718623046588,1.5928206,65921.0,65920.0,0.009383]
[1718623047441,1.61277888,65921.0,65920.0,0.009383]
[1718623047640,1.59277888,65921.0,65920.0,0.009383]
[1718623048732,1.61085124,65921.0,65920.0,0.009383]
[1718623049128,1.61085439,65921.0,65920.0,0.009383]
[1718623049925,1.63085439,65921.0,65920.0,0.009383]
[1718623050452,1.63085147,65921.0,65920.0,0.009383]
[1718623051075,1.66322908,65921.0,65920.0,0.009383]
[1718623051722,1.6308122,65921.0,65920.0,0.009383]
[1718623051928,1.6108122,65921.0,65920.0,0.009383]
[1718623052338,1.6308122,65921.0,65920.0,0.009383]
[1718623052476,1.5580122,65921.0,65920.0,0.009383]
[1718623052688,1.6308122,65921.0,65920.0,0.009383]
[1718623052902,1.5380122,65921.0,65920.0,0.009383]
[1718623053150,1.64274565,65921.0,65920.0,0.009383]
[1718623053362,1.66274565,65921.0,65920.0,0.009383]
[1718623053566,1.56264565,65921.0,65920.0,0.009383]
[1718623053778,1.5307122,65921.0,65920.0,0.070783]
[1718623054807,1.5627996,65921.0,65920.0,0.070783]
[1718623055012,1.48800718,65921.0,65920.0,0.009383]
[1718623055219,1.56080718,65921.0,65920.0,0.009383]
[1718623055427,1.18461418,65921.0,65920.0,0.009383]
[1718623055637,1.25741418,65921.0,65920.0,0.009383]
[1718623055838,1.18461418,65921.0,65920.0,0.074383]
[1718623056040,1.22532678,65921.0,65920.0,0.074383]
[1718623056242,1.5611335,65921.0,65920.0,0.074383]
[1718623056840,1.5712335,65921.0,65920.0,0.074383]
[1718623057046,1.16262678,65921.0,65920.0,0.1726213]
[1718623057251,1.14455442,65921.0,65920.0,0.1726213]
[1718623057457,1.21743757,65921.0,65920.0,0.1726213]
[1718623058058,1.21743757,65921.0,65920.0,0.157283]
[1718623060552,1.21743422,65921.0,65920.0,0.157283]
[1718623061589,1.1737459,65921.0,65920.0,0.157283]
[1718623061813,1.21744362,65921.0,65920.0,0.157283]
[1718623063025,1.21744214,65921.0,65920.0,0.157283]
[1718623064073,1.21744214,65921.0,65920.0,0.1479]
[1718623064271,1.21744214,65921.0,65920.0,0.147183]
[1718623064272,1.20734214,65921.0,65920.0,0.147183]
[1718623073305,1.13454214,65921.0,65920.0,0.147183]
[1718623073541,1.20734214,65921.0,65920.0,0.147183]
[1718623075917,1.20734214,65921.0,65910.0,0.009383]
[1718623075918,0.151719,65912.0,65911.0,0.1379]
[1718623076330,0.16064369,65912.0,65911.0,0.1379]
[1718623076774,0.16064369,65912.0,65911.0,0.17254544]
[1718623077004,0.46407769,65912.0,65911.0,0.1379]
[1718623078657,0.46507769,65912.0,65911.0,0.1379]
[1718623082337,0.76851169,65912.0,65911.0,0.1379]
[1718623082555,0.81214136,65912.0,65911.0,0.1379]
[1718623083425,0.81214136,65912.0,65911.0,0.1535666]
[1718623083632,0.81214136,65912.0,65911.0,0.1379]
[1718623083841,0.50870736,65912.0,65911.0,0.1379]
[1718623084092,0.05355436,65912.0,65911.0,0.1579]
[1718623084316,0.05355436,65912.0,65911.0,0.916497]
[1718623084537,0.001,65912.0,65911.0,1.3183826]
[1718623084754,0.001,65912.0,65911.0,1.6218216]
[1718623085173,0.001,65912.0,65911.0,1.19245559]
[1718623085393,0.001,65912.0,65911.0,1.31837294]
[1718623086052,0.151701,65919.0,65917.0,0.1413]
[1718623086262,0.151701,65919.0,65918.0,0.2029434]
[1718623086489,0.455103,65919.0,65918.0,0.2029434]
[1718623086711,0.455103,65919.0,65918.0,0.1413]
[1718623086957,0.151701,65919.0,65918.0,0.1413]
[1718623088633,0.455942,65921.0,65918.0,0.1413]
[1718623088848,0.303399,65920.0,65917.0,0.0803]
[1718623089091,0.154703,65919.0,65918.0,0.1426]
[1718623089487,0.001,65919.0,65918.0,0.1426]
[1718623089654,0.303398,65920.0,65919.0,0.0781]
[1718623089859,0.00085,65921.0,65920.0,0.1453]
[1718623090082,0.00185,65921.0,65920.0,0.18255538]
[1718623090492,0.00085,65921.0,65920.0,0.18255538]
[1718623090866,0.152546,65921.0,65920.0,0.18255538]
[1718623091468,0.152546,65921.0,65920.0,0.1453]
[1718623091695,0.455939,65921.0,65920.0,0.1453]
[1718623092302,0.461939,65921.0,65920.0,0.1453]
[1718623093634,0.464939,65921.0,65920.0,0.1453]
[1718623096204,0.47389954,65921.0,65920.0,0.1453]
[1718623098821,0.77729254,65921.0,65920.0,0.1453]
[1718623099478,0.45511,65918.0,65917.0,0.0555438]
[1718623099661,0.45511,65918.0,65912.0,0.151716]
[1718623099662,0.151708,65916.0,65912.0,0.151716]
[1718623099838,0.151708,65917.0,65913.0,0.151714]
[1718623100051,0.00896054,65915.0,65914.0,0.0633]
[1718623100212,0.151708,65916.0,65915.0,0.0831]
[1718623100612,0.151708,65916.0,65915.0,0.17378976]
[1718623100936,0.152708,65916.0,65915.0,0.17378976]
[1718623102295,0.151708,65916.0,65915.0,0.24018976]
[1718623102491,0.151705,65917.0,65915.0,0.24018976]
[1718623102730,0.151708,65916.0,65915.0,0.1725]
[1718623103477,0.151708,65916.0,65915.0,0.1695]
[1718623103862,0.151708,65916.0,65915.0,0.1725]
[1718623105235,0.151708,65916.0,65915.0,0.1525]
[1718623105470,0.151708,65916.0,65915.0,0.1495]
[1718623105690,0.151708,65916.0,65915.0,0.24231307]
[1718623106298,0.151708,65916.0,65915.0,0.1725]
[1718623106872,0.303407,65918.0,65917.0,0.0856]
[1718623106873,0.151704,65918.0,65917.0,0.0856]
[1718623107451,0.455111,65918.0,65917.0,0.1642]
[1718623107665,0.151704,65918.0,65917.0,0.16353865]
[1718623107870,0.151704,65918.0,65917.0,0.21238591]
[1718623108530,0.303398,65920.0,65919.0,0.02]
[1718623108748,0.455097,65920.0,65919.0,0.02]
[1718623109185,0.45511,65918.0,65917.0,0.19338591]
[1718623109416,0.45511,65918.0,65917.0,0.19238591]
[1718623109658,0.151703,65918.0,65917.0,0.19238591]
[1718623110306,0.153703,65918.0,65917.0,0.19238591]
[1718623110511,0.153703,65918.0,65917.0,0.21238591]
[1718623110725,0.002,65918.0,65917.0,0.21238591]
[1718623111164,0.16263491,65918.0,65917.0,0.21238591]
[1718623111404,0.16263491,65918.0,65917.0,0.19238591]
[1718623111609,0.16263491,65918.0,65917.0,0.21238591]
[1718623111833,0.16263491,65918.0,65917.0,0.19338591]
[1718623112215,0.16263491,65918.0,65917.0,0.21338591]
[1718623112585,0.16263491,65918.0,65917.0,0.19338591]
[1718623113417,0.16263491,65918.0,65917.0,0.21338591]
[1718623114625,0.16263491,65918.0,65917.0,0.19338591]
[1718623114872,0.16263491,65918.0,65917.0,0.21338591]
[1718623115081,0.01093191,65918.0,65917.0,0.21338591]
[1718623115883,0.01093191,65918.0,65917.0,1.6261292]
[1718623116089,0.01093191,65918.0,65917.0,1.6491292]
[1718623116292,0.002,65918.0,65917.0,1.6491292]
[1718623116507,0.002,65918.0,65917.0,1.3457182]
[1718623116713,0.00085,65920.0,65919.0,0.778505]
[1718623116922,0.00085,65920.0,65919.0,1.19991029]
[1718623117341,0.00085,65920.0,65919.0,1.35199808]
[1718623118917,0.00185,65920.0,65919.0,1.35599808]
[1718623119751,0.00185,65920.0,65919.0,1.07799279]
[1718623119954,0.00285,65920.0,65919.0,1.20389661]
[1718623124185,0.00285,65920.0,65919.0,1.07799279]
[1718623124561,0.00285,65920.0,65919.0,1.20389661]
[1718623125193,0.00285,65920.0,65919.0,1.6593864]
[1718623125834,0.00285,65920.0,65919.0,1.3559844]
[1718623126251,0.00285,65920.0,65919.0,0.7291804]
[1718623126454,0.00285,65920.0,65919.0,0.7491804]
[1718623126666,0.01031008,65920.0,65919.0,1.12538403]
[1718623127111,0.01031008,65920.0,65919.0,0.82198203]
[1718623128155,0.01031008,65920.0,65919.0,0.67028103]
[1718623130518,0.16200908,65920.0,65919.0,0.67028103]
[1718623131966,0.16200908,65920.0,65919.0,0.59748103]
[1718623132372,0.16200908,65920.0,65919.0,0.59748319]
[1718623132783,0.16200908,65920.0,65919.0,0.61580005]
[1718623137957,0.16200908,65920.0,65919.0,0.48989244]
[1718623138186,0.01031008,65920.0,65919.0,0.61580114]
[1718623138600,0.16200908,65920.0,65919.0,0.61580114]
[1718623140460,0.01031008,65920.0,65919.0,0.61580114]
[1718623141505,0.01031008,65920.0,65919.0,0.76750214]
[1718623141709,0.01031008,65920.0,65919.0,0.61580114]
[1718623142740,0.16200908,65920.0,65919.0,0.61580114]
[1718623142950,0.16200908,65920.0,65919.0,0.46371335]
[1718623143161,0.16200908,65920.0,65919.0,0.4437162]
[1718623143377,0.16200908,65920.0,65919.0,0.4637162]
[1718623143378,0.46540708,65920.0,65919.0,0.4637162]
[1718623143997,0.46540708,65920.0,65919.0,0.4437162]
[1718623144201,0.46540708,65920.0,65919.0,0.4637162]
[1718623144407,0.46540708,65920.0,65919.0,0.53502602]
[1718623144835,0.01031008,65920.0,65919.0,0.53502602]
[1718623145052,0.01031008,65920.0,65919.0,0.68672702]
[1718623145284,0.00285,65920.0,65919.0,0.53502602]
[1718623145694,0.16210155,65920.0,65919.0,0.53502602]
[1718623148243,0.01040255,65920.0,65919.0,0.53502602]
[1718623148444,0.01040255,65920.0,65919.0,0.53502119]
[1718623149913,0.01040255,65920.0,65919.0,1.31642619]
[1718623150346,0.00285,65920.0,65919.0,1.61982819]
[1718623150560,0.00285,65920.0,65919.0,1.31642619]
[1718623150762,0.00285,65920.0,65919.0,1.01302419]
[1718623158132,0.00285,65920.0,65919.0,1.31642619]
[1718623159339,0.00285,65920.0,65919.0,1.36151347]
[1718623159515,0.00285,65920.0,65919.0,1.41158837]
[1718623160297,0.00285,65920.0,65919.0,1.36650109]
[1718623160825,0.00285,65920.0,65919.0,1.36153176]
[1718623161256,0.00285,65920.0,65919.0,1.71982819]
[1718623161463,0.00285,65920.0,65919.0,2.08466225]
[1718623162095,0.00185,65920.0,65919.0,2.08066225]
[1718623162344,0.00185,65920.0,65919.0,1.98066225]
[1718623162583,0.00285,65920.0,65919.0,1.98466225]
[1718623162798,0.00285,65920.0,65919.0,2.05231928]
[1718623163006,0.00085,65920.0,65919.0,2.12111928]
[1718623163430,0.00185,65920.0,65919.0,1.80637697]
[1718623164398,0.00285,65920.0,65919.0,1.81937697]
[1718623165311,0.00285,65920.0,65919.0,1.57572147]
[1718623165511,0.00285,65920.0,65919.0,1.62590817]
[1718623165999,0.00285,65920.0,65919.0,1.19951947]
[1718623166215,0.00285,65920.0,65919.0,1.27231947]
[1718623167178,0.00285,65920.0,65919.0,1.39821466]
[1718623168184,0.00285,65920.0,65919.0,1.27231947]
[1718623174426,0.00285,65920.0,65919.0,0.89611747]
[1718623174770,0.01048235,65920.0,65919.0,0.96891747]
[1718623175657,0.00285,65920.0,65919.0,0.96891747]
[1718623178096,0.01048235,65920.0,65919.0,0.96891747]
[1718623178701,0.01048235,65920.0,65919.0,0.66551547]
[1718623180349,0.01048235,65920.0,65919.0,0.51381447]
[1718623180551,0.01048235,65920.0,65919.0,0.44101447]
[1718623180955,0.01048235,65920.0,65919.0,0.89611747]
[1718623181160,0.00285,65920.0,65919.0,0.89611747]
[1718623181781,0.01048235,65920.0,65919.0,0.89611747]
[1718623182739,0.00285,65920.0,65919.0,0.89611747]
[1718623183536,0.00285,65920.0,65919.0,0.25471447]
[1718623183537,1.19435101,65920.0,65919.0,0.25471447]
[1718623184166,1.15405101,65920.0,65919.0,0.3806225]
[1718623184374,0.85065301,65920.0,65919.0,0.3806225]
[1718623184789,0.85065301,65920.0,65919.0,0.3676225]
[1718623184790,0.84965301,65920.0,65919.0,0.3676225]
[1718623184991,0.85065301,65920.0,65919.0,0.3806225]
[1718623185804,0.84965301,65920.0,65919.0,0.3676225]